Cogmind - Beta 12 @@@ ROGUE MODE // 2023.03.14 @ 20:47:41 Player: ChromeKnight Result: Self-destructed Performance ------------- Evolutions (4) 2000 Regions Visited (15) 3000 Robots Destroyed (143) 715 Value Destroyed (6039) 6039 Prototype IDs (4) 80 Alien Tech Used (0) 0 Bonus (3411) 3411 TOTAL SCORE: 15245 Bonus ------- High Alert Combat Kills 403 Follower Combat Kills 578 Entered Garrisons 800 Used RIF Installer 2000 Friendly Fire -370 Cogmind --------- Core Integrity 544/850 Matter 39/300 Energy 100/100 System Corruption 0% Temperature Cool (0) Movement Hovering (60) Location -6/Factory Parts ------- > --- POWER (1) -------- (None) > --- PROPULSION (4) --- Improved Gravmag System > --- UTILITY (8) ------ Improved Hacking Suite Improved System Shield Relay Coupler [NC] (29) Relay Coupler [Brawler] (11) Relay Coupler [Demolisher] (20) Relay Coupler [Hunter] (14) Relay Coupler [Hunter] (17) > --- WEAPON (2) ------- Coil Gun > --- INVENTORY (5) ---- Advanced Signal Interpreter Relay Coupler [NC] (22) Relay Coupler [NC] (30) Relay Coupler [Demolisher] (18) Relay Coupler [Hunter] (18) Peak State ------------ > --- POWER ------------ Light Ion Engine > --- PROPULSION ------- Improved Gravmag System Improved Gravmag System Improved Gravmag System Improved Gravmag System > --- UTILITY ---------- Improved Hacking Suite Improved System Shield Authchip [R/Combat] Relay Coupler [NC] Relay Coupler [Brawler] Relay Coupler [Demolisher] Relay Coupler [Hunter] Relay Coupler [Hunter] > --- WEAPON ----------- Coil Gun > --- INVENTORY -------- Relay Coupler [NC] Relay Coupler [NC] Relay Coupler [Demolisher] Relay Coupler [Hunter] Coil Gun [Rating: 60] Favorites ----------- Power Nuclear Core Engine Improved Ion Engine Power Core Nuclear Core Propulsion Light Treads Treads Light Treads Leg Aluminum Leg Hover Unit Improved Gravmag System Flight Unit VTOL Module Utility Large Storage Unit Device Improved Heat Sink Storage Large Storage Unit Processor Targeting Computer Hackware Relay Coupler [Hunter] Protection Hardened Heavy Armor Plating Weapon EM Shotgun Energy Gun EM Shotgun Ballistic Gun Heavy Assault Rifle Launcher Improved Grenade Launcher Special Melee Weapon Datajack Build | -11 -10 -10 -9 -9 -9 -8 -8 -8 -8 -8 -7 -7 -7 -7 -6 ------- Run | Jun Mat Min Mat Min Exi Min Mat Gar Mat Gar Fac Gar Fac Gar Fac Slots Evolved 8 | . . . 2 . . . 2 . . . 2 . . . 2 Power . | . . . . . . . . . . . . . . . . Propulsion 2 | . . . . . . . 1 . . . . . . . 1 Utility 6 | . . . 2 . . . 1 . . . 2 . . . 1 Weapon . | . . . . . . . . . . . . . . . . Parts Attached 191 | 6 18 6 26 . . . 25 16 10 13 12 37 3 5 14 Power 20 | 1 3 1 3 . . . 3 1 1 . . 4 . . 3 Engine 12 | 1 3 1 3 . . . . 1 . . . . . . 3 Core 8 | . . . . . . . 3 . 1 . . 4 . . . Reactor . | . . . . . . . . . . . . . . . . Propulsion 51 | 2 7 2 7 . . . 8 4 . 4 3 8 1 . 5 Treads 28 | . . 2 7 . . . 8 4 . 4 3 . . . . Leg 11 | 2 7 . . . . . . . . . . 2 . . . Wheel . | . . . . . . . . . . . . . . . . Hover 5 | . . . . . . . . . . . . 1 . . 4 Flight 7 | . . . . . . . . . . . . 5 1 . 1 Utility 68 | 1 3 1 10 . . . 9 8 5 7 8 8 1 4 3 Device 6 | . 2 . . . . . 2 . . . . 1 1 . . Storage 5 | 1 1 . 2 . . . 1 . . . . . . . . Processor 1 | . . 1 . . . . . . . . . . . . . Hackware 28 | . . . . . . . . . 3 6 6 6 . 4 3 Protection 28 | . . . 8 . . . 6 8 2 1 2 1 . . . Artifact . | . . . . . . . . . . . . . . . . Weapon 52 | 2 5 2 6 . . . 5 3 4 2 1 17 1 1 3 Energy Gun 17 | . 2 . 2 . . . 5 2 . 2 . 4 . . . Energy Cannon . | . . . . . . . . . . . . . . . . Ballistic Gun 25 | 2 3 2 4 . . . . . . . 1 8 1 1 3 Ballistic Cannon . | . . . . . . . . . . . . . . . . Launcher 2 | . . . . . . . . 1 1 . . . . . . Special Weapon . | . . . . . . . . . . . . . . . . Impact Weapon . | . . . . . . . . . . . . . . . . Slashing Weapon . | . . . . . . . . . . . . . . . . Piercing Weapon . | . . . . . . . . . . . . . . . . Special Melee Weapon 8 | . . . . . . . . . 3 . . 5 . . . Unidentified Prototypes 4 | . . . 1 . . . 1 . . 1 . . 1 . . Parts Lost 45 | . . . 3 . . . 6 5 3 . 4 13 . 5 6 Power 4 | . . . . . . . . . . . . 2 . 1 1 Propulsion 14 | . . . . . . . 3 . . . 2 3 . 2 4 Utility 14 | . . . 2 . . . 1 3 1 . 1 4 . 1 1 Weapon 13 | . . . 1 . . . 2 2 2 . 1 4 . 1 . Highest Loss Streak 8 | . . . 2 . . . 5 2 2 . 2 8 . 4 4 To Critical Strikes . | . . . . . . . . . . . . . . . . Average Slot Usage (%) 90 | . 93 99 95 100 100 100 98 92 84 97 92 73 98 95 66 Engine 4 | . 14 14 10 11 11 11 3 1 4 . . . . . 1 Core 4 | . . . . . . . 5 7 4 9 7 6 7 6 . Treads 18 | . . 19 21 22 22 22 26 27 27 27 21 2 . . . Leg 3 | . 28 7 . . . . . . . . . 3 . . . Flight 1 | . . . . . . . . . . . . 5 23 23 5 Device 3 | . 8 4 . . . . 8 9 2 . . 1 7 7 1 Storage 8 | . 14 14 11 11 11 11 9 9 9 9 7 4 . . . Processor 1 | . . 9 11 11 11 11 . . . . . . . . . Hackware 15 | . . . . . . . . . 11 24 31 29 46 45 46 Protection 10 | . . . 20 22 22 22 26 20 12 8 8 4 . . . Energy Gun 7 | . 16 8 3 22 22 22 17 13 2 8 . 1 . . . Ballistic Gun 4 | . 11 19 15 . . . . . . . 4 8 5 7 4 Launcher 1 | . . . . . . . . 4 6 . . . . . . Special Melee Weapon 2 | . . . . . . . . . 4 9 7 2 7 3 . Naked Turns . | . . . . . . . . . . . . . . . . Heaviest Build 65 | 11 18 24 50 50 50 50 55 65 65 54 36 55 12 13 8 Greatest Support 68 | 20 20 40 40 40 40 40 62 62 60 60 68 30 14 14 40 Greatest Overweight (x) 2 | . . 1 1 1 1 1 1 1 1 . 1 2 . . . Average Overweight (x) . | . . . . 1 1 1 . . . . . . . . . Largest Inventory Capacity 15 | 8 10 10 15 15 15 15 15 15 15 15 15 15 5 5 5 Average Capacity 12 | 6 8 10 14 15 15 15 15 15 15 15 15 11 5 5 5 Most Carried 15 | . 10 10 15 15 15 15 15 15 15 15 15 15 5 5 5 Average Carried 11 | . 6 6 13 15 15 15 13 13 13 14 14 10 5 4 4 Final Capacity 15 | 8 10 10 15 15 15 15 15 15 15 15 15 5 5 5 5 Final Carried 15 | . 10 5 15 15 15 15 15 15 14 15 12 5 5 5 5 Class Distribution -------------------- 44% | Bothacker-Mutant 35% | Mutant 11% | Scavenger-Mutant 4% | Bothacker-Sprinter Dominant Class ---------------- Mutant | -10/Materials Scavenger-Mutant | -10/Mines Scavenger-Mutant | -9/Materials Mutant | -9/Mines Mutant | -9/Exiles Mutant | -8/Mines Mutant | -8/Materials Mutant | -8/Garrison Bothacker-Mutant | -8/Materials Bothacker-Mutant | -8/Garrison Bothacker-Mutant | -7/Factory Bothacker-Mutant | -7/Garrison Bothacker-Sprinter | -7/Factory Sprinter | -7/Garrison Mutant | -6/Factory Resources | -11 -10 -10 -9 -9 -9 -8 -8 -8 -8 -8 -7 -7 -7 -7 -6 ----------- Run | Jun Mat Min Mat Min Exi Min Mat Gar Mat Gar Fac Gar Fac Gar Fac Matter Collected 3048 | 202 416 70 706 . . . 215 298 48 271 118 444 . 87 173 Remotely . | . . . . . . . . . . . . . . . . Salvage Created 5190 | 26 882 . 1106 . . 12 1354 844 123 449 43 290 . . 61 Parts 296 | 4 48 . 67 . . 2 62 46 12 33 4 15 . . 3 Haulers Intercepted 2 | . . . . . . . 2 . . . . . . . . Recyclers Shooed 9 | . 3 . 3 . . . 1 . . . 2 . . . . Parts Field Recycled . | . . . . . . . . . . . . . . . . Retrieved Matter . | . . . . . . . . . . . . . . . . Parts Self-Destructed . | . . . . . . . . . . . . . . . . Prevented . | . . . . . . . . . . . . . . . . Kills | -11 -10 -10 -9 -9 -9 -8 -8 -8 -8 -8 -7 -7 -7 -7 -6 ------- Run | Jun Mat Min Mat Min Exi Min Mat Gar Mat Gar Fac Gar Fac Gar Fac Combat Hostiles Destroyed 115 | . 14 . 24 . . 1 23 23 7 12 1 9 . . 1 Guns 91 | . 14 . 23 . . 1 15 16 . 11 1 9 . . 1 AOE 22 | . . . 1 . . . 6 7 7 1 . . . . . Classes Destroyed 14 | 1 5 . 3 . . . 2 2 . . . . . . 1 Worker 2 | . . . 2 . . . . . . . . . . . . Tunneler 3 | 1 2 . . . . . . . . . . . . . . Hauler 2 | . . . . . . . 2 . . . . . . . . Recycler 4 | . 3 . 1 . . . . . . . . . . . . Operator 4 | . 2 . 2 . . . . . . . . . . . . Watcher 11 | . 3 . 3 . . . 3 1 1 . . . . . . Swarmer 36 | . 3 . 7 . . 1 3 7 5 6 . 4 . . . Cutter 2 | . . . . . . . . 2 . . . . . . . Grunt 52 | . 11 . 12 . . . 12 6 1 6 . 4 . . . Brawler 1 | . . . 1 . . . . . . . . . . . . Duelist 4 | . . . . . . . 1 2 1 . . . . . . Sentry 17 | . . . 4 . . . 7 4 1 1 . . . . . Hunter 1 | . . . . . . . . . . . . . . . 1 Programmer 4 | . . . . . . . . 2 . . 1 1 . . . Best Kill Streak 5 | 1 5 . 5 . . 1 3 4 4 3 1 2 . . 1 Combat Bots Only 5 | . 5 . 4 . . 1 3 4 3 3 1 2 . . 1 Max Kills in Single Turn 4 | 1 1 . 1 . . 1 2 4 3 2 1 1 . . 1 Gunslinging . | . . . . . . . . . . . . . . . . Exploded 4 | . . . 1 . . . 2 4 2 1 . . . . . Melee . | . . . . . . . . . . . . . . . . Uniques/NPCs Destroyed . | . . . . . . . . . . . . . . . . Combat | -11 -10 -10 -9 -9 -9 -8 -8 -8 -8 -8 -7 -7 -7 -7 -6 -------- Run | Jun Mat Min Mat Min Exi Min Mat Gar Mat Gar Fac Gar Fac Gar Fac Damage Taken 9804 | . 638 16 1023 . . 35 1328 1369 445 650 1128 2043 . 315 814 Core 1499 | . 103 . 109 . . . 99 102 21 74 159 403 . 123 306 Absorbed by Shields 73 | . . . . . . . . . . . . 73 . . . Redirected to Shielding 209 | . . . . . . . . 100 . . 109 . . . . Regen/Repaired (Parts) 540 | . 178 . . . . . . . 362 . . . . . . Core Remaining (%) 55 | 100 . 58 . . . 72 . . . 46 . . . 2 . Volleys Fired 459 | 1 80 . 86 . . 2 70 57 9 30 8 91 . 14 11 Largest 2 | 2 2 . 2 . . 2 2 2 1 1 1 2 . 1 1 Hottest 100 | 40 100 . 90 . . 90 95 95 45 50 20 88 . 35 30 Shots Fired 771 | 2 160 . 170 . . 4 136 109 9 30 8 118 . 14 11 Gun 754 | 2 160 . 170 . . 4 136 100 1 30 8 118 . 14 11 Cannon . | . . . . . . . . . . . . . . . . Launcher 17 | . . . . . . . . 9 8 . . . . . . Special . | . . . . . . . . . . . . . . . . Kinetic 365 | 2 92 . 156 . . . . . . . 8 82 . 14 11 Thermal 104 | . 68 . . . . . . . . . . 36 . . . Explosive 17 | . . . . . . . . 9 8 . . . . . . Electromagnetic 285 | . . . 14 . . 4 136 100 1 30 . . . . . Robot Hit Streak 18 | 1 11 . 10 . . 4 18 15 5 9 6 8 . 7 8 Robot Miss Streak 9 | 1 3 . 3 . . 1 4 4 1 2 1 9 . 1 1 Penetration Max 1 | . . . . . . . . . . . . . . 1 1 Secondary Targets 2 | . . . . . . . . 2 . . . . . . . Max Gunslinging Chain 1 | . . . . . . . . 1 . . . . . . . Shots Hit Robots 547 | 1 99 . 110 . . 3 110 70 16 44 26 49 1 8 10 Core Hits 275 | 2 43 . 47 . . 3 72 52 11 17 4 22 . . 2 Critical Kills 2 | . 1 . . . . . . . . . . . . . 1 Critical Parts Destroyed 2 | . . . 1 . . . . . . . . 1 . . . Critical Strikes 8 | . 5 . 1 . . . . . . . . 1 . . 1 Burn 4 | . 4 . . . . . . . . . . . . . . Destroy 4 | . 1 . 1 . . . . . . . . 1 . . 1 Melee Attacks 82 | . . . . . . . . . 9 25 32 10 1 5 . Impact . | . . . . . . . . . . . . . . . . Slashing . | . . . . . . . . . . . . . . . . Piercing . | . . . . . . . . . . . . . . . . Sneak Attacks 31 | . . . . . . . . . 7 14 9 . . 1 . Combat Hostiles 1 | . . . . . . . . . . . . . . 1 . Follow-up Attacks . | . . . . . . . . . . . . . . . . Damage Inflicted 9478 | 19 1118 . 1699 . . 43 2363 1591 829 454 64 862 . 179 257 Guns 7223 | 19 1118 . 1657 . . 43 1755 955 14 328 64 834 . 179 257 Cannons . | . . . . . . . . . . . . . . . . Explosions 2208 | . . . 29 . . . 602 636 815 126 . . . . . Melee . | . . . . . . . . . . . . . . . . Ramming 47 | . . . 13 . . . 6 . . . . 28 . . . Kinetic 3290 | 19 619 . 1501 . . . . . . . 64 651 . 179 257 Thermal 1498 | . 499 . 29 . . . 463 133 65 126 . 183 . . . Explosive 1253 | . . . . . . . . 503 750 . . . . . . Electromagnetic 3390 | . . . 156 . . 43 1894 955 14 328 . . . . . Impact . | . . . . . . . . . . . . . . . . Slashing . | . . . . . . . . . . . . . . . . Piercing . | . . . . . . . . . . . . . . . . Highest Corruption 4 | . . . . . . . . . . . . 3 4 4 . Average Corruption 3 | . . . . . . . . . . . . 2 3 4 . Corruption Purged . | . . . . . . . . . . . . . . . . Corruption Blocked . | . . . . . . . . . . . . . . . . Effects 26 | . . . . . . . . . . . . 12 2 12 . Message Errors 7 | . . . . . . . . . . . . 4 1 2 . Matter Fused 7 | . . . . . . . . . . . . 2 . 5 . Heat Flow Errors 3 | . . . . . . . . . . . . 1 . 2 . Energy Discharges 4 | . . . . . . . . . . . . 3 . 1 . Parts Fused 2 | . . . . . . . . . . . . . 1 1 . Data Loss (minor) 1 | . . . . . . . . . . . . . . 1 . Data Loss (major) 2 | . . . . . . . . . . . . 2 . . . Overload Shots . | . . . . . . . . . . . . . . . . Overflow Damage 112 | . . . . . . . 1 3 108 . . . . . . Projectiles . | . . . . . . . . . . . . . . . . Explosions 112 | . . . . . . . 1 3 108 . . . . . . Melee . | . . . . . . . . . . . . . . . . Knockbacks . | . . . . . . . . . . . . . . . . Impact . | . . . . . . . . . . . . . . . . Kinetic . | . . . . . . . . . . . . . . . . Secondary . | . . . . . . . . . . . . . . . . Self-Inflicted Damage 942 | . . . . . . . 242 313 312 54 . 21 . . . Shots 22 | . . . . . . . 6 8 7 1 . . . . . Rammed 6 | . . . 4 . . . 1 . . . . 1 . . . Targets Rammed 8 | . . . 5 . . . 1 . . . . 2 . . . Kicked 1 | . . . . . . . . . . . . 1 . . . Crushed 1 | . . . 1 . . . . . . . . . . . . Highest Temperature 474 | . 102 . 212 . . 54 474 123 36 108 10 260 . 120 . Average Temperature 55 | . 22 . 39 . . 30 101 32 13 36 10 58 . 63 . Received Heat Transfer 2351 | . 321 . 435 . . . 495 189 36 207 66 380 . 102 120 Effects 2 | . . . . . . . 2 . . . . . . . . Shutdowns 1 | . . . . . . . 1 . . . . . . . . Damage (minor) 1 | . . . . . . . 1 . . . . . . . . Siege Activations . | . . . . . . . . . . . . . . . . Robots Corrupted 2 | . . . . . . . 2 . . . . . . . . Combat Hostiles 2 | . . . . . . . 2 . . . . . . . . Parts Fried 17 | . . . . . . . 10 7 . . . . . . . Impact Corruptions . | . . . . . . . . . . . . . . . . Robots Melted . | . . . . . . . . . . . . . . . . Combat Hostiles . | . . . . . . . . . . . . . . . . Parts Melted 1 | . 1 . . . . . . . . . . . . . . Heat Transferred 3170 | . 1776 . 50 . . . 550 100 100 150 . 444 . . . Parts Sabotaged . | . . . . . . . . . . . . . . . . Parts Stolen . | . . . . . . . . . . . . . . . . Parts Stripped . | . . . . . . . . . . . . . . . . Power Chain Reactions 14 | . . . 1 . . . 8 3 1 1 . . . . . Missiles Intercepted . | . . . . . . . . . . . . . . . . Alert | -11 -10 -10 -9 -9 -9 -8 -8 -8 -8 -8 -7 -7 -7 -7 -6 ------- Run | Jun Mat Min Mat Min Exi Min Mat Gar Mat Gar Fac Gar Fac Gar Fac Peak Influence 1282 | 5 284 60 412 156 . 74 478 1282 624 1184 633 267 140 228 114 Initial 624 | . 3 45 . 156 . . 28 239 624 307 621 4 140 98 95 Average 391 | . 130 28 208 156 . 53 268 772 531 785 369 116 140 185 44 Maximum Alert Level 4 | . 1 . 2 . . . 2 4 2 4 2 1 . 1 . Low Security (%) 40 | 100 82 100 51 100 . 100 30 . . . 18 95 100 68 100 Level 1 17 | . 17 . 44 . . . 52 9 . 10 44 4 . 31 . Level 2 23 | . . . 4 . . . 16 29 100 25 37 . . . . Level 3 15 | . . . . . . . . 51 . 53 . . . . . Level 4 2 | . . . . . . . . 8 . 10 . . . . . Level 5 . | . . . . . . . . . . . . . . . . High Security . | . . . . . . . . . . . . . . . . Max Security . | . . . . . . . . . . . . . . . . Squads Dispatched 15 | . 4 . 4 . . . 1 . . . 4 . . . 2 Investigation 2 | . 2 . . . . . . . . . . . . . . Extermination 2 | . . . . . . . . . . . 1 . . . 1 Reinforcement 8 | . 2 . 4 . . . 1 . . . 1 . . . . Assault 1 | . . . . . . . . . . . . . . . 1 Garrison 2 | . . . . . . . . . . . 2 . . . . Intercept . | . . . . . . . . . . . . . . . . Searches Triggered . | . . . . . . . . . . . . . . . . Construction Impeded 1 | . . . 1 . . . . . . . . . . . . Haulers Reinforced . | . . . . . . . . . . . . . . . . Active Scanning Responses . | . . . . . . . . . . . . . . . . Cargo Convoy Interrupts . | . . . . . . . . . . . . . . . . Stealth | -11 -10 -10 -9 -9 -9 -8 -8 -8 -8 -8 -7 -7 -7 -7 -6 --------- Run | Jun Mat Min Mat Min Exi Min Mat Gar Mat Gar Fac Gar Fac Gar Fac Distress Signals 8 | . 1 . 1 . . . 3 2 1 . . . . . . Communications Jammed . | . . . . . . . . . . . . . . . . Distress Signals . | . . . . . . . . . . . . . . . . Times Spotted 224 | . 25 1 38 . . 4 33 29 11 26 20 19 3 9 6 Peak Tracking Total 7 | . 5 2 5 . . 4 4 4 5 5 4 7 2 5 4 Tactical Retreats 12 | . 2 . 2 . . . 1 3 . . . 1 . . 3 Traps | -11 -10 -10 -9 -9 -9 -8 -8 -8 -8 -8 -7 -7 -7 -7 -6 ------- Run | Jun Mat Min Mat Min Exi Min Mat Gar Mat Gar Fac Gar Fac Gar Fac Traps Triggered 23 | . 1 . 4 . . . . 3 . 4 . 3 1 5 2 Indirectly . | . . . . . . . . . . . . . . . . Trap Hack Attempts 35 | . . . . . . . . . . 20 . 15 . . . Triggered . | . . . . . . . . . . . . . . . . Disarmed 1 | . . . . . . . . . . . . 1 . . . Reprogrammed 3 | . . . . . . . . . . 3 . . . . . Reused . | . . . . . . . . . . . . . . . . Traps Extracted . | . . . . . . . . . . . . . . . . Installed . | . . . . . . . . . . . . . . . . Triggered . | . . . . . . . . . . . . . . . . Machines | -11 -10 -10 -9 -9 -9 -8 -8 -8 -8 -8 -7 -7 -7 -7 -6 ---------- Run | Jun Mat Min Mat Min Exi Min Mat Gar Mat Gar Fac Gar Fac Gar Fac Machines Disabled 15 | . . . 1 . . . 4 3 1 4 . 1 . 1 . Max in Single Turn 2 | . . . 1 . . . 2 1 1 1 . 1 . 1 . Garrison Access 1 | . . . . . . . . . . . . . . . 1 Garrison Relay 9 | . . . . . . . . 3 . 4 . 1 . 1 . Machines Repaired . | . . . . . . . . . . . . . . . . Machines Sabotaged . | . . . . . . . . . . . . . . . . Overloaded Fab Kills . | . . . . . . . . . . . . . . . . Hacking | -11 -10 -10 -9 -9 -9 -8 -8 -8 -8 -8 -7 -7 -7 -7 -6 --------- Run | Jun Mat Min Mat Min Exi Min Mat Gar Mat Gar Fac Gar Fac Gar Fac Machines Accessed 36 | . 2 . 3 . . . 5 2 6 4 2 1 2 1 8 Terminals 23 | . 1 . 3 . . . 3 2 4 4 . 1 . 1 4 Fabricators 2 | . . . . . . . . . . . . . . . 2 Repair Stations 4 | . 1 . . . . . 1 . 1 . 1 . . . . Recycling Units 1 | . . . . . . . . . . . . . 1 . . Scanalyzers . | . . . . . . . . . . . . . . . . Garrison Access 6 | . . . . . . . 1 . 1 . 1 . 1 . 2 Total Hacks 89 | . 11 . 5 . . . 10 3 17 7 6 4 4 2 20 Successful 49 | . 11 . 3 . . . 5 . 10 3 2 1 2 1 11 Failed 40 | . . . 2 . . . 5 3 7 4 4 3 2 1 9 Catastrophic 10 | . . . 1 . . . . 2 . 1 1 1 1 1 2 Database Lockouts . | . . . . . . . . . . . . . . . . Manual 39 | . 1 . 4 . . . 4 . 14 . 2 . 1 . 13 Terminals 51 | . 1 . 5 . . . 7 3 11 7 . 4 . 2 11 Fabricators 3 | . . . . . . . . . . . . . . . 3 Repair Stations 17 | . 10 . . . . . 2 . 2 . 3 . . . . Recycling Units 2 | . . . . . . . . . . . . . 2 . . Scanalyzers . | . . . . . . . . . . . . . . . . Garrison Access 16 | . . . . . . . 1 . 4 . 3 . 2 . 6 Terminal Hacks 11 | . . . 1 . . . 2 . . 3 . 1 . 1 3 Robot Schematic 2 | . . . . . . . . . . . . . . . 2 Open Door 1 | . . . . . . . . . . 1 . . . . . Level Access Points 1 | . . . . . . . 1 . . . . . . . . Branch Access Points 1 | . . . 1 . . . . . . . . . . . . Emergency Access Points 2 | . . . . . . . . . . 1 . . . 1 . Dispatch Records 1 | . . . . . . . 1 . . . . . . . . Zone Layout 1 | . . . . . . . . . . . . . . . 1 Garrison Registry 2 | . . . . . . . . . . 1 . 1 . . . Fabricator Hacks 2 | . . . . . . . . . . . . . . . 2 Network Status 1 | . . . . . . . . . . . . . . . 1 Build 1 | . . . . . . . . . . . . . . . 1 Repair Station Hacks 14 | . 10 . . . . . 1 . 2 . 1 . . . . Scan Component 8 | . 5 . . . . . 1 . 1 . 1 . . . . Repair 6 | . 5 . . . . . . . 1 . . . . . . Recycling Unit Hacks 1 | . . . . . . . . . . . . . 1 . . Retrieve Matter 1 | . . . . . . . . . . . . . 1 . . Scanalyzer . | . . . . . . . . . . . . . . . . Garrison Access Hacks 6 | . . . . . . . 1 . 1 . 1 . 1 . 2 Unlock Access 6 | . . . . . . . 1 . 1 . 1 . 1 . 2 Unauthorized Hacks 15 | . 1 . 2 . . . 1 . 7 . . . . . 4 Terminals 11 | . 1 . 2 . . . 1 . 6 . . . . . 1 Track 1 | . . . . . . . . . 1 . . . . . . Botnet 8 | . . . 2 . . . 1 . 4 . . . . . 1 Operators 2 | . 1 . . . . . . . 1 . . . . . . Fabricators . | . . . . . . . . . . . . . . . . Repair Stations . | . . . . . . . . . . . . . . . . Recycling Units . | . . . . . . . . . . . . . . . . Scanalyzers . | . . . . . . . . . . . . . . . . Garrison Access 4 | . . . . . . . . . 1 . . . . . 3 Restock 1 | . . . . . . . . . . . . . . . 1 Reprogram 3 | . . . . . . . . . 1 . . . . . 2 Data Cores Recovered . | . . . . . . . . . . . . . . . . Used . | . . . . . . . . . . . . . . . . Hacking Detections 29 | . 1 . 3 . . . 3 2 5 2 2 1 2 1 7 Full Trace Events 3 | . 1 . . . . . . . . . . 1 . 1 . Feedback Events . | . . . . . . . . . . . . . . . . Feedback Blocked . | . . . . . . . . . . . . . . . . Robot Schematics Acquired 2 | . . . . . . . . . . . . . . . 2 Robots Built 1 | . . . . . . . . . . . . . . . 1 Authchips . | . . . . . . . . . . . . . . . . Time 152 | . . . . . . . . . . . . . . . 152 Total Robot Build Rating 5 | . . . . . . . . . . . . . . . 5 Part Schematics Acquired . | . . . . . . . . . . . . . . . . Parts Built . | . . . . . . . . . . . . . . . . Authchips . | . . . . . . . . . . . . . . . . Time . | . . . . . . . . . . . . . . . . Total Part Build Rating . | . . . . . . . . . . . . . . . . Parts Repaired 6 | . 5 . . . . . . . 1 . . . . . . Time 174 | . 130 . . . . . . . 44 . . . . . . Parts Recycled . | . . . . . . . . . . . . . . . . Recycled Matter . | . . . . . . . . . . . . . . . . Retrieved Matter . | . . . . . . . . . . . . . . . . Retrieved Components . | . . . . . . . . . . . . . . . . Parts Scanalyzed . | . . . . . . . . . . . . . . . . Part Schematics Acquired . | . . . . . . . . . . . . . . . . Parts Damaged . | . . . . . . . . . . . . . . . . Bothacking | -11 -10 -10 -9 -9 -9 -8 -8 -8 -8 -8 -7 -7 -7 -7 -6 ------------ Run | Jun Mat Min Mat Min Exi Min Mat Gar Mat Gar Fac Gar Fac Gar Fac Used RIF Installer 4 | . . . . . . . . 1 . 1 . 1 . 1 . Threat Obfuscator 1 | . . . . . . . . . . 1 . . . . . Patrol Navigation 1 | . . . . . . . . . . . . 1 . . . Autoassimilate 1 | . . . . . . . . . . . . . . 1 . Robots Hacked 32 | . . . . . . . . . 5 7 12 4 1 3 . Non-combat 8 | . . . . . . . . . 3 . 5 . . . . Combat 24 | . . . . . . . . . 2 7 7 4 1 3 . Robot Hacks Applied 36 | . . . . . . . . . 5 8 15 4 1 3 . generate_echo 1 | . . . . . . . . . . . 1 . . . . locate_stockpiles 1 | . . . . . . . . . . . 1 . . . . ignore_parts 1 | . . . . . . . . . . . 1 . . . . purge_threat 2 | . . . . . . . . . . . 2 . . . . map_route 1 | . . . . . . . . . . . 1 . . . . link_fov 1 | . . . . . . . . . . . 1 . . . . overload_power 1 | . . . . . . . . . . . . 1 . . . disable_weapons 1 | . . . . . . . . . . 1 . . . . . go_dormant 1 | . . . . . . . . . . . 1 . . . . overwrite_iff 2 | . . . . . . . . . . 1 1 . . . . formatsys_low 3 | . . . . . . . . . 3 . . . . . . formatsys_high 21 | . . . . . . . . . 2 6 6 3 1 3 . Relay Couplers Released 38 | . . . . . . . . 12 . 15 . 3 . 4 4 Machine Destruction 38 | . . . . . . . . 12 . 15 . 3 . 4 4 Attached 23 | . . . . . . . . . 3 6 5 5 . 3 1 Fabnet Peak Effective % . | . . . . . . . . . . . . . . . . Robots Rewired 4 | . . . . . . . . . . 4 . . . . . Allies Hacked 4 | . . . . . . . . . . . 4 . . . . Hacks Repelled . | . . . . . . . . . . . . . . . . Allies | -11 -10 -10 -9 -9 -9 -8 -8 -8 -8 -8 -7 -7 -7 -7 -6 -------- Run | Jun Mat Min Mat Min Exi Min Mat Gar Mat Gar Fac Gar Fac Gar Fac Total Allies 36 | . . . . 1 . . . . 5 12 7 3 1 3 4 Largest Group 9 | . . . . 1 1 1 . . 4 9 9 2 . 4 3 Highest-Rated Group 116 | . . . . 31 31 31 . . 48 94 93 32 . 116 93 Highest-Rated Ally 32 | . . . . 31 31 31 . . 16 31 16 16 . 32 31 Total Orders 31 | . . . . . . . . . 4 13 11 1 . . 2 STAY 17 | . . . . . . . . . 2 5 9 1 . . . FOLLOW 8 | . . . . . . . . . 1 5 1 . . . 1 DROP 2 | . . . . . . . . . . 1 1 . . . . COLLECT 4 | . . . . . . . . . 1 2 . . . . 1 Ally Attacks 149 | . . . . . . 12 . . 1 34 53 22 . 14 13 Total Damage 2087 | . . . . . . 186 . . . 498 547 258 . 447 151 Kills 27 | . . . . . . 3 . . . 8 8 4 . 4 . Allies Corrupted . | . . . . . . . . . . . . . . . . Allies Melted . | . . . . . . . . . . . . . . . . Intel | -11 -10 -10 -9 -9 -9 -8 -8 -8 -8 -8 -7 -7 -7 -7 -6 ------- Run | Jun Mat Min Mat Min Exi Min Mat Gar Mat Gar Fac Gar Fac Gar Fac Robot Analysis Total . | . . . . . . . . . . . . . . . . Derelict Logs Recovered 1 | . . 1 . . . . . . . . . . . . . Drone Launches . | . . . . . . . . . . . . . . . . Drone Recoveries . | . . . . . . . . . . . . . . . . Exploration | -11 -10 -10 -9 -9 -9 -8 -8 -8 -8 -8 -7 -7 -7 -7 -6 ------------- Run | Jun Mat Min Mat Min Exi Min Mat Gar Mat Gar Fac Gar Fac Gar Fac Turns Passed 15117 | 53 1370 748 1166 73 101 188 1293 2112 1536 2339 1247 1254 127 599 911 Spaces Moved 8157 | 37 612 310 436 30 43 66 580 1005 806 1236 670 684 199 473 970 Core 41 | 3 . . . . . . . . . . . 38 . . . Treads 5188 | . . 154 436 30 43 66 580 1005 806 1236 670 162 . . . Legs 928 | 34 612 156 . . . . . . . . . 126 . . . Wheels . | . . . . . . . . . . . . . . . . Hover 312 | . . . . . . . . . . . . 18 . . 294 Flight 1688 | . . . . . . . . . . . . 340 199 473 676 Fastest Speed 29 | 50 120 120 160 240 240 240 155 155 160 160 160 29 30 30 37 Average Speed 132 | 114 120 140 177 240 240 240 158 169 169 160 162 117 30 30 41 Slowest Speed 270 | 120 120 240 240 240 240 240 240 240 240 160 240 270 32 40 60 Overloaded Moves . | . . . . . . . . . . . . . . . . Propulsion Burnouts . | . . . . . . . . . . . . . . . . Robots Hopped 16 | . . . . . . . . . . . . . . 7 9 Cave-ins Triggered . | . . . . . . . . . . . . . . . . Exploration Rate (%) 36 | 4 81 63 33 12 10 20 61 69 41 64 18 48 6 39 22 Regions Visited 15 Branch Regions 4 Pre-discovered Areas . | . . . . . . . . . . . . . . . . Known Exits Taken 6 | . . . 1 . . 1 1 . 1 . 1 . 1 . . Unknown Exits Taken 5 | 1 1 1 . 1 1 . . . . . . . . . . Scrap Searched 1 | . . 1 . . . . . . . . . . . . . Spaces Dug . | . . . . . . . . . . . . . . . . Terrain Destroyed 159 | . . . 2 . . . 32 47 72 5 . . . 1 . Melee . | . . . . . . . . . . . . . . . . Projectile 1 | . . . . . . . . . . . . . . 1 . AOE 158 | . . . 2 . . . 32 47 72 5 . . . . . Terrain Rammed 2 | . . . . . . . . . . . . 2 . . . Walls Destroyed . | . . . . . . . . . . . . . . . . Machines Disabled . | . . . . . . . . . . . . . . . . Actions | -11 -10 -10 -9 -9 -9 -8 -8 -8 -8 -8 -7 -7 -7 -7 -6 --------- Run | Jun Mat Min Mat Min Exi Min Mat Gar Mat Gar Fac Gar Fac Gar Fac Total 11704 | 43 1101 625 656 32 42 93 824 1319 963 1561 806 1013 263 909 1454 Wait 2479 | . 366 297 75 3 . 26 120 204 118 204 62 142 60 342 460 Move 8106 | 36 611 309 435 29 42 65 579 1003 805 1234 669 682 198 457 952 Hop 16 | . . . . . . . . . . . . . . 7 9 Pick Up 93 | . 13 1 16 . . . 9 18 4 14 6 7 . 3 2 Fast Attach 82 | 6 5 5 12 . . . 5 4 2 2 3 21 3 2 12 Attach 36 | . . . 4 . . . 6 8 3 4 3 5 . 1 2 Detach 1 | . . . . . . . . . 1 . . . . . . Swap 73 | . 13 1 10 . . . 14 4 5 7 6 11 . 2 . Drop 128 | . 13 12 13 . . . 20 17 3 15 9 16 . 4 6 Fire 459 | 1 80 . 86 . . 2 70 57 9 30 8 91 . 14 11 Melee 82 | . . . . . . . . . 9 25 32 10 1 5 . Ram 2 | . . . . . . . . . . . . 2 . . . Kick 1 | . . . . . . . . . . . . 1 . . . Crush 7 | . . . 5 . . . 1 . . . . 1 . . . Escape Stasis 82 | . . . . . . . . 4 . . . 6 . 72 . Rewire 22 | . . . . . . . . . 4 6 8 3 1 . . Trap 35 | . . . . . . . . . . 20 . 15 . . . Miscellaneous . | . . . . . . . . . . . . . . . . Route ------- -11/Junkyard -10/Materials (discovered 3 exits: *Mat / [*Min x2]) -10/Mines -9/Materials (discovered 3 exits: Mat / *Min x2) -9/Mines -9/Exiles -8/Mines -8/Materials (discovered 4 exits: *Fac x3 / Gar) -8/Garrison (discovered 3 exits: *Mat x3) -8/Materials -8/Garrison (discovered 4 exits: *Fac x3 / [Mat]) -7/Factory (discovered 2 exits: Fac / Gar) -7/Garrison (discovered 3 exits: *Fac x3) -7/Factory -7/Garrison -6/Factory (discovered 4 exits: [*Fac x2] / [*Low] / Gar) History --------- Turn | Location | Event 4 | -11/Junkyard | Discovered new exit (range 16) 54 | -11/Junkyard | Entered Materials 298 | -10/Materials | Repaired Lgt. Assault Rifle 319 | -10/Materials | Build established: Mutant 326 | -10/Materials | Repaired Assault Rifle 353 | -10/Materials | Repaired Aluminum Leg 380 | -10/Materials | Repaired Lgt. Ion Engine 408 | -10/Materials | Repaired Lgt. Ion Engine 533 | -10/Materials | Discovered new exit (range 12) 893 | -10/Materials | Discovered new exit (range 12) 1090 | -10/Materials | Discovered new exit (range 8) 1424 | -10/Materials | Entered Mines 1600 | -10/Mines | Joined a pair of Derelicts in attacking an 0b10 outpost 1619 | -10/Mines | Learned 4 Materials zone layouts 1722 | -10/Mines | Assembled infested the area 1727 | -10/Mines | Assisted by a Guerilla fighting off Assembled 1928 | -10/Mines | Build established: Scavenger-Mutant 2122 | -10/Mines | Discovered new exit (range 9) 2172 | -10/Mines | Entered Materials 2172 | -9/Materials | Evolved 2 slots: Utility x2 2173 | -9/Materials | Identified exit to Materials 2479 | -9/Materials | Identified exit to Mines 3296 | -9/Materials | Build established: Mutant 3338 | -9/Materials | Entered Mines 3341 | -9/Mines | Received a Mining Laser from a helpful Derelict 3398 | -9/Mines | Deemed a non-threat by the Exiles lab entrance 3398 | -9/Mines | Discovered new exit (range 5) 3411 | -9/Mines | Entered Exiles 3411 | -9/Exiles | Accompanied by 1 ally 3469 | -9/Exiles | Met 8R-AWN 3483 | -9/Exiles | Discovered new exit (range 14) 3512 | -9/Exiles | Entered Mines 3512 | -8/Mines | Accompanied by 1 ally 3662 | -8/Mines | Discovered exit to Materials (range 16) 3700 | -8/Mines | Entered Materials 3700 | -8/Materials | Evolved 2 slots: Propulsion x1, Utility x1 4271 | -8/Materials | Discovered new exit (range 12) 4361 | -8/Materials | Lost 5 parts (2n1u2w) 4417 | -8/Materials | Identified exit to Factory 4985 | -8/Materials | Identified exit to Garrison 4993 | -8/Materials | Entered Garrison 5016 | -8/Garrison | Triggered checkpoint 5031 | -8/Garrison | Garrison Relay disabled 5098 | -8/Garrison | Triggered checkpoint 5152 | -8/Garrison | Triggered checkpoint 5192 | -8/Garrison | Garrison Relay disabled 5208 | -8/Garrison | Triggered checkpoint 5271 | -8/Garrison | Discovered new exit (range 14) 5566 | -8/Garrison | Triggered checkpoint 5618 | -8/Garrison | Triggered checkpoint 5640 | -8/Garrison | Garrison Relay disabled 5821 | -8/Garrison | Discovered new exit (range 15) 6088 | -8/Garrison | Triggered checkpoint 6149 | -8/Garrison | Installed Relay Interface Framework 6255 | -8/Garrison | Discovered new exit (range 12) 6707 | -8/Garrison | Build established: Bothacker-Mutant 7105 | -8/Garrison | Entered Materials 7903 | -8/Materials | Identified exit to Garrison 7976 | -8/Materials | Repaired Hrd. Heavy Armor Plating 8641 | -8/Materials | Entered Garrison 8641 | -8/Garrison | Accompanied by 4 allies 8852 | -8/Garrison | Triggered checkpoint 8885 | -8/Garrison | Garrison Relay disabled 8913 | -8/Garrison | Garrison Relay disabled 9212 | -8/Garrison | Triggered checkpoint 9318 | -8/Garrison | Triggered checkpoint 9422 | -8/Garrison | Discovered exit to Factory (range 10) 9454 | -8/Garrison | Triggered checkpoint 9462 | -8/Garrison | Core integrity fell below 50% 9488 | -8/Garrison | Triggered checkpoint 9507 | -8/Garrison | Garrison Relay disabled 9531 | -8/Garrison | Discovered exit to Factory (range 12) 9531 | -8/Garrison | Discovered exit to Factory (range 59) 9531 | -8/Garrison | Discovered exit to Factory (range 84) 9531 | -8/Garrison | Discovered new exit (range 68) 9730 | -8/Garrison | Expanded RIF knowledge: Threat Obfuscation 9770 | -8/Garrison | Garrison Relay disabled 9874 | -8/Garrison | Triggered checkpoint 9958 | -8/Garrison | Rescued a captive Derelict 10980 | -8/Garrison | Entered Factory 10980 | -7/Factory | Accompanied by 8 allies 10980 | -7/Factory | Evolved 2 slots: Utility x2 11491 | -7/Factory | Discovered new exit (range 172) 11601 | -7/Factory | P-60 Hacker assimilated allied Transporter 3a 12064 | -7/Factory | Garrison activated, responded to threat 12214 | -7/Factory | Identified exit to Garrison 12227 | -7/Factory | Entered Garrison 12320 | -7/Garrison | Triggered checkpoint 12327 | -7/Garrison | Discovered new exit (range 26) 12327 | -7/Garrison | Discovered new exit (range 50) 12327 | -7/Garrison | Discovered new exit (range 50) 12412 | -7/Garrison | Garrison Relay disabled 12834 | -7/Garrison | Triggered checkpoint 13086 | -7/Garrison | Core integrity fell below 50% 13116 | -7/Garrison | Lost 8 parts (1p2n2u3w) 13136 | -7/Garrison | Core integrity fell below 20% 13324 | -7/Garrison | Triggered checkpoint 13457 | -7/Garrison | Expanded RIF knowledge: Patrol Navigation 13481 | -7/Garrison | Entered Factory 13587 | -7/Factory | Identified exit to Garrison 13608 | -7/Factory | Entered Garrison 13608 | -7/Garrison | Accompanied by 1 ally 13664 | -7/Garrison | Triggered checkpoint 13670 | -7/Garrison | Garrison Relay disabled 13774 | -7/Garrison | Build established: Bothacker-Sprinter 14183 | -7/Garrison | Build established: Sprinter 14186 | -7/Garrison | Discovered new exit (range 13) 14194 | -7/Garrison | Expanded RIF knowledge: Autoassimilate 14207 | -7/Garrison | Entered Factory 14207 | -6/Factory | Evolved 2 slots: Propulsion x1, Utility x1 14237 | -6/Factory | Lost 4 parts (1p2n1u) 14241 | -6/Factory | Discovered new exit (range 16) 14253 | -6/Factory | Allied Derelicts emerged from ambush trap array 14505 | -6/Factory | Build established: Mutant 14568 | -6/Factory | Fabricated A-15 Conveyor (x1) 14705 | -6/Factory | Discovered new exit (range 8) 14783 | -6/Factory | Identified exit to Garrison 15003 | -6/Factory | Identified exit to Garrison 15014 | -6/Factory | Discovered new exit (range 16) 15096 | -6/Factory | Build established: Hacker-Mutant 15118 | -6/Factory | Self-destructed Last Messages --------------- 15094_ Relay Coupler [Cutter] tumbles out of Garrison Access. 15095_ Slug penetrates P-70 Sage. 15097_ Slug penetrates Wall. 15099_ Slug penetrates P-70 Sage. 15100_ Nuclear Reactor explodes. 15100_ Lgt. Ion Engine destroyed. 15101_ Slug penetrates P-70 Sage. 15103_ Imp. Gravmag System destroyed. 15103_ Slug penetrates P-70 Sage. 15103_ Destroyed Imp. Heat Sink. 15107_ Slug penetrates P-70 Sage. 15107_ Destroyed Hpw. Shock Rifle. 15107_ Slug penetrates H-66 Slayer. 15107_ H-66 Slayer suffers critical hit (Destroy). 15107_ H-66 Slayer destroyed. 15109_ The unstable cave ceiling collapses. 15110_ Slug penetrates P-70 Sage. 15115_ Imp. Gravmag System destroyed. 15115_ K-01 Serf collects debris. 15116_ Imp. Gravmag System destroyed. Map ----- +----------------------------------------------------+ | ????????????????????# #????????????????????????? | | ????????????????????# #????????????????????????? | | ?################???# #????????????????????????? | | """"" """"" ! #???# #????????????????????????? | | """"" """"" #???# +????????????????????????? | | """ """ #???# #????????????????????????? | | #???# #########????????????????? | | #???# # * ????????????????? | | #???# # ????????????????? | | #???# # ????????????????? | | #####+#+########????# # """ ""????????????????? | | ????# #?#######?# # """ """???????????????? | | ????# # """ ?# # """ """ #???????????? | | ????# # "R" """?# + #???????????? | | ????# + " " """?# # """ """ #???????????? | | ##### # """?### # """ """???????????????? | | # [ #?# # """ ""????????????????? | | ###########?# # ????????????????? | | < #????# # ????????????????? | | ###### #########????????????????? | | ??????????? | | ######u########?????????????????? | | ### ##Y###??????????????????????? | | ######+##### #??????????????????????? | | ???? ??# # ####### ?????? | | ??#"""" # @ p =!%[ ?????? | | ??#"""" # ###### u ?????? | | ??#"""" # #??????????????? ?#?? | | ??#"""" # #?????????????? #?? | | ???"""" # " #?????????????? ?? | | ??????? # "G" #?????????????? ?? | | ??????? !# """ #??????????????? ?? | | ??????? # k# #??????????????? " " | | ???????##### ###########??????????????? " " | | ############ #?????????????????????????# " " | | " # #?????????????????######### " " | | " """"" # #?????????????????# ## " " | | " """"" # ###############+### """ ## " " | | """ # # """ ## " " | | # # """ ## " " | | """" """"" + # + " " | | """" """"" # ######## # [ # | | "" """ # #??????# ###+#### | | + #??????# #?# | | ##############/########?# #?# ######## | | ??????# ! ### ### #??????# | | ??????# + #??????# | | ??????# """" """" ### ##+#####+####???# | | ??????# """" """" #?# # #???# ## | | ??????# """" """" #?###+### #???# #? | +----------------------------------------------------+ Best States ------------- Heat Dissipation 59 Energy Generation 18 Energy Capacity 280 Matter Stores 300 Matter Capacity 300 Sight Range 16 Terrain Scan Density 10 Armor Coverage 825 Resistance: EM 15 Propulsion Shielding 66 Weapon Shielding 66 Evasion (%) 64 Targeting Accuracy 5 Recoil Reduction 3 Offensive Hacking 12 Defensive Hacking 12 Relay Coupler Types 5 Relay Coupler Value 95 Authchip Count 3 Item Schematics ----------------- None Robot Schematics ------------------ S-27 Virus | -6/Factory | Hacked P-60 Hacker | -6/Factory | Hacked Fabricated ------------ A-15 Conveyor | x1 | -6/Factory | Preloaded Alien Tech Used ----------------- None Achievements -------------- None Challenges ------------ None Game ------ Seed TiamatMyomerChip Manual? 0 Play Time 01:22:25 Cumulative 398.5 hours Start 2023.03.08 @ 21:17:01 End 2023.03.14 @ 20:47:41 Sessions 5 Manual Loads 0 Difficulty Rogue Special Mode None Game No. 711 Rogue 556 Adventurer 148 Explorer 7 Win Type - Total 16 Types 14/0/1/1/0/0/0/0/0 Lore% 77 Gallery% 87 Achievement% 72 Wizard Run 0 Options --------- ASCII 0 Keyboard 0 Movement Numpad Keybinds 0 Fullscreen 2 Font 18/SmallcapsGlow Map View 76x50 Tactical HUD 1 Map Filters NONE Filters NONE Steam 1 RUN: d5b4fb37-1b08-4c4e-bb91-de26a5c2a3e2